bitfinex/quotes_SOLUSD_20250508
["timestamp","ask_amount","ask_price","bid_price","bid_amount"]
[1746719313642,18.79181043,162.01,161.87,26.0]
[1746719313643,6.17245849,162.01,161.87,26.0]
[1746719313846,35.52386824,161.9,161.83,15.44793833]
[1746719314061,61.52386824,162.0,161.83,15.44793833]
[1746719314547,35.52386824,161.93,161.83,41.44793833]
[1746719314859,21.60360471,162.01,161.87,26.0]
[1746719314860,6.17245849,162.01,161.87,26.0]
[1746719315069,35.52386824,161.92,161.88,6.17741536]
[1746719315391,18.64964886,161.99,161.88,6.17741536]
[1746719315546,35.52386824,161.9,161.88,6.17741536]
[1746719315855,35.52386824,161.9,161.86,6.17817867]
[1746719316044,35.52386824,161.92,161.86,21.62362535]
[1746719316230,35.52386824,161.94,161.86,21.62362535]
[1746719316431,35.52386824,162.0,161.86,21.62362535]
[1746719316831,35.52386824,161.95,161.86,21.62362535]
[1746719317231,18.64964886,162.06,161.87,44.79181043]
[1746719317428,26.0,162.04,161.87,44.79181043]
[1746719317656,35.52386824,161.97,161.87,44.79181043]
[1746719317857,35.52386824,161.93,161.86,21.62362535]
[1746719318061,6.17131572,162.04,161.89,26.0]
[1746719318366,35.52386824,162.08,161.9,18.79181043]
[1746719318536,35.52386824,162.02,161.9,44.79181043]
[1746719318856,35.52386824,162.08,161.93,26.0]
[1746719319059,231.28,162.1,161.94,21.61294306]
[1746719319279,6.16941205,162.09,161.94,52.48857601]
[1746719319574,35.52386824,162.03,161.95,6.1437]
[1746719319752,35.52386824,162.02,161.95,6.1437]
[1746719319950,35.52386824,162.03,161.95,6.1437]
[1746719320375,35.52386824,162.02,161.95,6.1437]
[1746719320554,61.66602981,162.08,161.95,6.1437]
[1746719320755,26.0,162.05,161.92,21.61561264]
[1746719320951,6.17131572,162.04,161.92,21.61561264]
[1746719321270,35.52386824,161.98,161.92,21.61561264]
[1746719321684,35.52386824,161.97,161.92,21.61561264]
[1746719321972,6.17131572,162.04,161.92,21.61561264]
[1746719322350,35.52386824,161.99,161.92,21.61561264]
[1746719322545,6.17131572,162.04,161.92,21.61561264]
[1746719322743,35.52386824,161.99,161.92,21.61561264]
[1746719323165,35.52386824,162.0,161.92,21.61561264]
[1746719323383,35.52386824,162.02,161.92,47.61561264]
[1746719323554,6.0786,162.15,161.96,26.0]
[1746719323742,35.52386824,162.06,161.96,26.0]
[1746719324171,35.52386824,162.04,161.96,26.0]
[1746719324368,35.52386824,162.02,161.93,18.79181043]
[1746719324564,35.52386824,162.08,161.92,78.49505928]
[1746719324767,35.52386824,162.01,161.92,78.49505928]
[1746719324950,35.52386824,162.02,161.92,78.49505928]
[1746719325274,6.16750955,162.14,161.96,26.0]
[1746719325452,35.52386824,162.06,161.96,26.0]
[1746719325767,6.16750955,162.14,161.97,18.79181043]
[1746719325975,6.1659884,162.18,162.0,26.0]
[1746719326175,6.1659884,162.18,162.02,6.2921]
[1746719326342,6.1659884,162.18,162.05,26.0]
[1746719326851,35.52386824,162.16,162.03,26.0]
[1746719327068,35.52386824,162.16,162.02,6.2921]
[1746719327266,35.52386824,162.16,162.03,21.60093808]
[1746719327267,6.16756619,162.14,162.03,21.60093808]
[1746719327949,35.52386824,162.09,162.03,21.60093808]
[1746719328157,6.16756619,162.14,162.03,21.60093808]
[1746719328377,6.16719544,162.15,162.03,21.60093808]
[1746719328564,35.52386824,162.09,162.03,21.60093808]
[1746719328759,6.16719544,162.15,162.03,21.60093808]
[1746719328760,35.52386824,162.1,162.03,21.60093808]
[1746719328948,35.52386824,162.09,162.03,21.60093808]
[1746719329155,6.16719544,162.15,162.03,21.60093808]
[1746719329375,35.52386824,162.07,162.03,6.17169659]
[1746719329675,35.52386824,162.09,162.03,21.60093808]
[1746719329874,6.16294835,162.26,162.08,0.14216157]
[1746719330173,35.52386824,162.19,162.1,26.0]
[1746719330474,26.0,162.23,162.05,44.79181043]
[1746719330677,35.52386824,162.15,162.05,44.79181043]
[1746719330860,35.52386824,162.13,162.04,1.5454]
[1746719331173,35.52386824,162.11,162.05,6.17093489]
[1746719331379,35.52386824,162.08,162.05,6.17093489]
[1746719331747,26.0,162.14,162.03,6.17134101]
[1746719331952,26.0,162.14,161.97,20.28474886]
[1746719331953,26.0,162.1,161.98,6.17360167]
[1746719332158,35.52386824,162.02,161.98,6.17360167]
[1746719332357,35.52386824,162.01,161.96,12.24937776]
[1746719332659,35.52386824,161.97,161.91,6.17627076]
[1746719333065,35.52386824,161.94,161.91,6.17627076]
[1746719333276,35.52386824,161.96,161.91,6.17627076]
[1746719333488,35.52386824,161.95,161.9,14.31958026]
[1746719333668,6.17314273,162.0,161.9,14.31958026]
[1746719334153,35.52386824,161.96,161.9,14.31958026]
[1746719334482,41.69701097,162.0,161.9,14.31958026]
[1746719334668,6.17245849,162.01,161.9,14.31958026]
[1746719334979,26.0,162.03,161.9,14.31958026]
[1746719335151,35.52386824,161.99,161.9,14.31958026]
[1746719335351,26.0,162.03,161.9,14.31958026]
[1746719335577,26.0,162.03,161.9,29.76121089]
[1746719335767,6.17055411,162.06,161.9,29.76121089]
[1746719335970,32.17055411,162.06,161.9,29.76121089]
[1746719336291,35.52386824,161.98,161.9,29.76121089]
[1746719336774,35.52386824,161.99,161.9,29.76121089]
[1746719337354,35.52386824,161.98,161.9,29.76121089]
[1746719337751,6.17093489,162.05,161.9,29.76121089]
[1746719337971,18.64964886,162.1,161.91,18.79181043]
[1746719338178,35.52386824,162.03,161.91,27.77475229]
[1746719338881,35.52386824,162.0,161.9,86.64447216]
[1746719339173,35.52386824,161.99,161.9,86.64447216]
[1746719339379,24.96198381,162.07,161.9,86.64447216]
[1746719339693,32.17017338,162.07,161.91,18.79181043]
[1746719340002,35.52386824,162.03,161.92,26.0]
[1746719340155,41.69372139,162.08,161.92,26.0]
[1746719340558,35.52386824,162.05,161.92,26.0]
[1746719340754,35.52386824,162.03,161.92,26.0]
[1746719340982,35.52386824,162.0,161.92,26.0]
[1746719341162,35.52386824,162.0,161.9,91.52773343]
[1746719341478,6.17017338,162.07,161.91,18.79181043]
[1746719341785,6.17017338,162.07,161.92,26.0]
[1746719341961,35.52386824,162.03,161.92,26.0]
[1746719342363,6.17017338,162.07,161.92,26.0]
[1746719342569,35.52386824,162.05,161.93,18.79181043]
[1746719342881,35.52386824,162.03,161.93,18.79181043]
[1746719343261,35.52386824,162.03,161.94,21.61294306]
[1746719343478,35.52386824,162.02,161.94,21.61294306]
[1746719344686,35.52386824,162.0,161.94,6.17512659]
[1746719344984,6.16636862,162.17,161.98,26.0]
[1746719345181,35.52386824,162.11,161.98,26.0]
[1746719345413,35.52386824,162.09,161.99,21.60627198]
[1746719345590,35.52386824,162.08,161.99,21.60627198]
[1746719345888,35.52386824,162.16,161.99,21.60627198]
[1746719345889,6.16636862,162.17,162.0,18.64964886]
[1746719346088,6.1651563,162.21,162.03,32.0982]
[1746719346267,35.52386824,162.16,162.03,33.7355]
[1746719346589,35.52386824,162.24,162.08,18.79181043]
[1746719346770,6.0786,162.26,162.08,18.79181043]
[1746719346975,6.16104984,162.31,162.11,0.14216157]
[1746719347174,35.52386824,162.2,162.09,57.35397548]
[1746719347359,35.52386824,162.2,162.11,21.5902782]
[1746719347566,35.52386824,162.21,162.11,21.5902782]
[1746719347874,35.52386824,162.22,162.12,18.64964886]
[1746719348073,57.0048266,162.32,162.12,18.64964886]
[1746719348281,35.52386824,162.21,162.12,18.64964886]
[1746719348483,35.52386824,162.21,162.12,44.64964886]
[1746719348888,30.79443529,162.37,162.12,44.64964886]
[1746719348889,6.0786,162.44,162.26,18.64964886]
[1746719349077,6.0786,162.44,162.28,18.64964886]
[1746719349276,6.15498245,162.47,162.31,21.56367444]
[1746719349599,35.52386824,162.41,162.31,21.56367444]
[1746719349770,6.15498245,162.47,162.31,21.56367444]
[1746719349972,35.52386824,162.39,162.31,6.16104984]
[1746719350173,35.52386824,162.34,162.28,6.1621888]
[1746719350479,26.0,162.43,162.28,6.1621888]
[1746719350688,35.52386824,162.35,162.28,6.1621888]
[1746719350870,35.52386824,162.32,162.25,6.1632957]
[1746719351200,26.0,162.37,162.23,231.18]
[1746719351386,35.52386824,162.34,162.24,18.79181043]
[1746719351582,67.6815037,162.4,162.24,18.79181043]
[1746719351583,35.52386824,162.35,162.24,18.79181043]
[1746719351771,6.15763546,162.4,162.24,18.79181043]
[1746719351980,36.19437727,162.34,162.24,18.79181043]
[1746719352182,36.19437727,162.33,162.24,18.64964886]
[1746719352507,26.0,162.37,162.23,231.18]
[1746719352674,36.19437727,162.36,162.23,231.18]
[1746719352874,36.19437727,162.27,162.23,231.18]
[1746719353106,36.19437727,162.36,162.23,231.18]
[1746719353107,26.0,162.36,162.23,231.18]
[1746719353392,36.19437727,162.28,162.23,231.18]
[1746719353594,36.19437727,162.26,162.23,231.18]
[1746719353799,36.19437727,162.26,162.16,26.0]
[1746719353800,36.19437727,162.24,162.18,6.16585944]
[1746719353974,36.19437727,162.23,162.16,6.16674888]
[1746719354172,36.19437727,162.2,162.15,6.2049]
[1746719354382,36.19437727,162.18,162.11,7.69417826]
[1746719354592,26.0,162.26,162.11,7.69417826]
[1746719354783,10.0,162.31,162.11,7.69417826]
[1746719354784,21.56234598,162.32,162.12,68.79181043]
[1746719354985,6.16067028,162.32,162.16,0.14216157]
[1746719355182,36.19437727,162.23,162.14,18.64964886]
[1746719355497,6.1621888,162.28,162.15,18.64964886]
[1746719355673,36.19437727,162.22,162.15,18.64964886]
[1746719355873,6.1621888,162.28,162.14,6.16750955]
[1746719355874,36.19437727,162.21,162.14,6.16750955]
[1746719356172,21.56766082,162.28,162.14,6.16750955]
[1746719356173,36.19437727,162.2,162.14,6.16750955]
[1746719356364,36.19437727,162.19,162.13,6.16783172]
[1746719356572,21.56766082,162.28,162.1,6.16903146]
[1746719356573,26.0,162.25,162.1,6.16903146]
[1746719356798,21.56766082,162.28,162.1,6.16903146]
[1746719356976,36.19437727,162.21,162.13,18.64964886]
[1746719357296,6.1621888,162.28,162.15,6.1671292]
[1746719357484,36.19437727,162.27,162.16,0.14216157]
[1746719357865,36.19437727,162.26,162.16,0.14216157]
[1746719358071,36.19437727,162.24,162.15,6.1671292]
[1746719358278,6.1621888,162.28,162.15,6.1671292]
[1746719358279,36.19437727,162.22,162.15,6.1671292]
[1746719358497,6.16029076,162.33,162.16,18.79181043]
[1746719358682,36.19437727,162.27,162.16,18.79181043]
[1746719358877,36.19437727,162.26,162.16,18.79181043]
[1746719359280,36.19437727,162.23,162.15,21.5849522]
[1746719359676,36.19437727,162.22,162.15,21.5849522]
[1746719359904,36.19437727,162.22,162.15,6.1671292]
[1746719360078,6.1618091,162.29,162.16,18.64964886]
[1746719360279,36.19437727,162.21,162.15,6.1671292]
[1746719360492,6.1618091,162.29,162.15,6.1671292]
[1746719360493,36.19437727,162.2,162.15,6.1671292]
[1746719360691,36.19437727,162.17,162.13,6.16755373]
[1746719361389,36.19437727,162.15,162.1,6.16903146]
[1746719361701,15.41118583,162.22,162.1,6.16903146]
[1746719361702,36.19437727,162.13,162.1,6.16903146]
[1746719361896,36.19437727,162.12,162.09,6.16932279]
[1746719362111,36.19437727,162.1,162.05,6.17093489]
[1746719362281,36.19437727,162.09,162.05,6.17093489]
[1746719362492,36.19437727,162.07,162.04,6.17128426]
[1746719362797,36.19437727,162.07,162.01,6.17245849]
[1746719363368,6.16750955,162.14,161.98,55.69125892]
[1746719363572,6.16750955,162.14,161.99,0.14216157]
[1746719363801,36.19437727,162.06,161.98,71.12526311]
[1746719364002,21.58628344,162.14,161.98,71.12526311]
[1746719364298,36.19437727,162.06,161.98,71.12526311]
[1746719364673,36.19437727,162.06,161.98,40.25725472]
[1746719364873,21.58628344,162.14,161.98,40.25725472]
[1746719365073,21.58628344,162.14,161.98,21.60760586]
[1746719365374,46.89739056,162.24,162.01,18.64964886]
[1746719365576,46.89739056,162.24,162.0,71.60493826]
[1746719365577,21.57962882,162.19,162.02,26.14216157]
[1746719365788,36.19437727,162.11,162.02,26.0]
[1746719365985,36.19437727,162.09,162.01,18.64964886]
[1746719366195,36.19437727,162.05,162.0,21.60493826]
[1746719367095,36.19437727,162.04,162.0,6.1728395]
[1746719367301,36.19437727,162.03,162.0,6.1728395]
[1746719367604,36.19437727,162.02,161.98,6.17360167]
[1746719367774,36.19437727,161.99,161.95,6.17474529]
[1746719368375,36.19437727,161.98,161.95,6.17474529]
[1746719368597,26.0,162.06,161.95,6.17474529]
[1746719368911,6.17093489,162.05,161.94,21.61245126]
[1746719369080,36.19437727,162.01,161.94,21.61245126]
[1746719369283,6.16979269,162.08,161.94,21.61245126]
[1746719369778,36.19437727,161.98,161.94,6.17512659]
[1746719369975,36.19437727,161.99,161.94,21.61294306]
[1746719370215,6.16948039,162.09,161.94,21.61294306]
[1746719370506,36.19437727,162.03,161.94,21.61294306]
[1746719371078,36.19437727,162.01,161.94,21.61294306]
[1746719371278,36.19437727,161.99,161.94,21.61294306]
[1746719371479,36.19437727,161.98,161.94,6.17512659]
[1746719371720,35.54915724,161.98,161.94,6.17512659]
[1746719372311,35.54915724,161.97,161.94,6.17512659]
[1746719372509,35.54915724,161.97,161.91,21.61635159]
[1746719372997,6.17169659,162.03,161.91,21.61635159]
[1746719373200,35.54915724,162.0,161.91,21.61635159]
[1746719373398,6.17169659,162.03,161.91,21.61635159]
[1746719373589,35.54915724,161.97,161.91,21.61635159]
[1746719374401,41.42770341,162.05,161.89,18.64964886]
[1746719374402,6.17162239,162.04,161.89,18.64964886]
[1746719374599,35.54915724,162.0,161.9,26.0]
[1746719375000,35.54915724,161.99,161.9,26.0]
[1746719375321,35.54915724,161.97,161.88,78.50726732]
[1746719375705,6.17162239,162.04,161.88,47.62095378]
[1746719375706,35.54915724,161.96,161.88,47.62095378]
[1746719375901,35.54915724,162.0,161.88,47.62095378]
[1746719376213,35.54915724,162.0,161.88,6.17741536]
[1746719376214,35.54915724,161.92,161.88,6.17741536]
[1746719376415,35.54915724,162.0,161.88,6.17741536]
[1746719376595,6.17322056,161.99,161.88,6.17741536]
[1746719376790,35.54915724,161.93,161.88,6.17741536]
[1746719376995,35.54915724,161.92,161.88,6.17741536]
[1746719377197,35.54915724,161.91,161.88,6.17741536]
[1746719377402,35.54915724,161.92,161.88,6.17741536]
[1746719377917,35.54915724,161.92,161.86,6.17817867]
[1746719378403,35.54915724,161.89,161.86,6.17817867]
[1746719378717,35.54915724,161.88,161.86,6.17817867]
[1746719379011,0.14216157,161.97,161.83,21.62763393]
[1746719379222,6.17360167,161.98,161.83,21.62763393]
[1746719379524,35.54915724,161.9,161.83,21.62763393]
[1746719379929,35.54915724,161.89,161.83,21.62763393]
[1746719380220,35.54915724,161.92,161.83,6.17932398]
[1746719380426,35.54915724,161.86,161.83,6.17932398]
[1746719380634,35.54915724,161.85,161.83,6.17932398]
[1746719380932,6.17474529,161.95,161.83,6.17932398]
[1746719381130,6.17474529,161.95,161.83,21.62763393]
[1746719381314,35.54915724,161.92,161.83,21.62763393]
[1746719381515,6.17437399,161.96,161.83,21.62763393]
[1746719381825,35.54915724,161.9,161.83,21.62763393]
[1746719382129,6.17437399,161.96,161.83,15.44830995]
[1746719382319,35.54915724,161.92,161.83,41.44830995]
[1746719382632,18.64964886,162.02,161.86,26.0]
[1746719382967,35.54915724,161.93,161.86,26.0]
[1746719383116,41.72209857,162.0,161.86,26.0]
[1746719383320,41.72209857,162.0,161.85,26.0]
[1746719383620,35.54915724,161.94,161.85,26.0]
[1746719384008,35.54915724,161.94,161.86,21.62362535]
[1746719384333,35.54915724,161.89,161.86,21.62362535]
[1746719384497,26.0,161.99,161.86,21.62362535]
[1746719384706,35.54915724,161.91,161.86,21.62362535]
[1746719384931,26.0,161.99,161.86,21.62362535]
[1746719385230,35.54915724,161.91,161.86,21.62362535]
[1746719385428,35.54915724,161.89,161.86,6.17817867]
[1746719385815,35.54915724,161.88,161.86,6.17817867]
[1746719386017,35.54915724,161.87,161.81,30.90043878]
[1746719386328,35.54915724,161.84,161.79,21.63298102]
[1746719386532,35.54915724,161.86,161.79,21.63298102]
[1746719386742,41.72517259,161.92,161.79,21.63298102]
[1746719386743,35.54915724,161.83,161.79,21.63298102]
[1746719386938,41.72517259,161.92,161.79,21.63298102]
[1746719387139,57.16489591,161.92,161.79,21.63298102]
[1746719387341,35.54915724,161.83,161.79,21.63298102]
[1746719387522,35.54915724,161.82,161.79,21.63298102]
[1746719387723,35.54915724,161.81,161.79,6.18085172]
[1746719387921,0.14216157,161.9,161.77,6.18161587]
[1746719387922,35.54915724,161.8,161.77,6.18161587]
[1746719388121,35.54915724,161.78,161.73,15.45711973]
[1746719388315,15.44503246,161.87,161.73,21.64026447]
[1746719388316,26.0,161.85,161.73,21.64026447]
[1746719388620,35.54915724,161.75,161.73,6.18314474]
[1746719388836,35.54915724,161.77,161.73,6.18314474]
[1746719389038,35.54915724,161.84,161.73,21.6410066]
[1746719389443,35.54915724,161.77,161.73,21.6410066]
[1746719389819,6.17817867,161.86,161.73,21.6410066]
[1746719390025,6.0786,161.91,161.77,21.63565555]
[1746719390241,35.54915724,161.85,161.77,21.63565555]
[1746719390437,35.54915724,161.83,161.77,21.63565555]
[1746719390629,35.54915724,161.82,161.77,21.63565555]
[1746719390833,21.76073847,161.9,161.77,21.63565555]
[1746719391032,35.54915724,161.85,161.77,21.63565555]
[1746719391240,35.54915724,161.83,161.77,21.63565555]
[1746719391925,6.17593514,161.92,161.77,52.54373492]
[1746719392146,6.0786,161.97,161.81,26.0]
[1746719392329,35.54915724,161.89,161.82,6.5753]
[1746719392529,35.54915724,161.87,161.82,6.5753]
[1746719392727,35.54915724,161.92,161.78,26.0]
[1746719392930,35.54915724,161.83,161.78,26.0]
[1746719393153,35.54915724,161.82,161.78,26.0]
[1746719393350,35.54915724,161.81,161.78,26.0]
[1746719393550,35.54915724,161.82,161.78,26.0]
[1746719393724,35.54915724,161.8,161.77,22.02933968]
[1746719394047,35.54915724,161.8,161.77,28.21095555]
[1746719394345,35.54915724,161.79,161.77,6.18161587]
[1746719394548,35.54915724,161.84,161.77,6.18161587]
[1746719394549,35.54915724,161.78,161.77,6.18161587]
[1746719394859,6.17703378,161.89,161.77,21.63565555]
[1746719395149,35.54915724,161.81,161.77,21.63565555]
[1746719395632,35.54915724,161.82,161.77,21.63565555]
[1746719395832,35.54915724,161.81,161.77,21.63565555]
[1746719396447,35.54915724,161.82,161.77,21.63565555]
[1746719396956,35.54915724,161.83,161.77,21.63565555]
[1746719397162,35.54915724,161.92,161.77,78.54373492]
[1746719397368,38.028,161.96,161.81,26.0]
[1746719397369,35.54915724,161.89,161.81,26.0]
[1746719397658,35.54915724,161.91,161.81,26.0]
[1746719397859,35.54915724,161.89,161.82,21.62897045]
[1746719398162,35.54915724,161.88,161.82,21.62897045]
[1746719398323,6.17523851,161.94,161.82,21.62897045]
[1746719398529,35.54915724,161.87,161.82,21.62897045]
[1746719399035,35.54915724,161.86,161.82,21.62897045]
[1746719399666,6.17523851,161.94,161.82,21.62897045]
[1746719399863,6.17523851,161.94,161.8,26.0]
[1746719400165,35.54915724,161.85,161.78,26.0]
[1746719400465,35.54915724,161.82,161.77,21.63565555]
[1746719400839,18.79181043,161.91,161.77,21.63565555]
[1746719401026,35.54915724,161.84,161.77,21.63565555]
[1746719401227,35.54915724,161.92,161.77,52.54373492]
[1746719401458,35.54915724,161.86,161.77,52.54373492]
[1746719401675,35.54915724,161.87,161.8,26.0]
[1746719401861,35.54915724,161.86,161.81,21.63030714]
[1746719402239,35.54915724,161.92,161.81,52.53074592]
[1746719402568,7.6976,162.04,161.84,32.4902]
[1746719402773,6.17169659,162.03,161.88,26.0]
[1746719402976,6.17017338,162.07,161.89,18.64964886]
[1746719403174,35.54915724,162.02,161.92,26.0]
[1746719403354,35.54915724,162.08,161.93,18.64964886]
[1746719403660,35.54915724,162.08,161.9,8.5471354]
[1746719403661,35.54915724,162.01,161.9,8.5471354]
[1746719403865,35.54915724,161.98,161.87,52.65343603]
[1746719404074,6.17017338,162.07,161.91,18.64964886]
[1746719404273,35.54915724,162.04,161.94,26.0]
[1746719404451,35.54915724,162.03,161.94,26.0]
[1746719404654,35.54915724,162.04,161.94,26.0]
[1746719404862,6.0786,162.1,161.94,26.0]
[1746719405047,6.16854487,162.12,161.96,18.64964886]
[1746719405241,35.54915724,162.04,161.95,68.6873]
[1746719405668,35.54915724,162.04,161.95,42.6873]
[1746719405845,6.17008325,162.08,161.96,21.61027414]
[1746719406045,6.16927625,162.1,161.96,21.61027414]
[1746719406275,15.41832069,162.15,161.96,47.61027414]
[1746719406480,6.0786,162.16,161.96,47.61027414]
[1746719406481,35.54915724,162.07,161.96,47.61027414]
[1746719407381,6.16484803,162.21,162.04,26.0]
[1746719407549,35.54915724,162.15,162.04,26.0]
[1746719407749,35.54915724,162.14,162.04,26.0]
[1746719407962,35.54915724,162.13,162.05,21.59827213]
[1746719408160,35.54915724,162.12,162.05,21.59827213]
[1746719408369,26.0,162.19,162.05,21.59827213]
[1746719408564,35.54915724,162.13,162.05,21.59827213]
[1746719408869,35.54915724,162.11,162.05,21.59827213]
[1746719409276,35.54915724,162.12,162.05,21.59827213]
[1746719409687,35.54915724,162.12,162.05,15.42733724]
[1746719409850,6.1659884,162.18,162.05,15.42733724]
[1746719410051,6.16484803,162.21,162.05,41.42733724]
[1746719410273,35.54915724,162.16,162.05,41.42733724]
[1746719410470,35.54915724,162.12,162.05,15.42733724]
[1746719410686,35.54915724,162.11,162.05,15.42733724]
[1746719410887,35.54915724,162.09,162.03,6.17169659]
[1746719411084,35.54915724,162.06,162.03,6.17169659]
[1746719411678,6.16750955,162.14,161.96,52.48098131]
[1746719411879,41.41641256,162.17,161.96,52.48098131]
[1746719411880,6.1659884,162.18,162.0,18.79181043]
[1746719412055,35.54915724,162.11,162.03,26.0]
[1746719412261,32.1659884,162.18,162.01,26.0]
[1746719412463,32.1659884,162.18,162.02,18.79181043]
[1746719412663,35.54915724,162.12,162.02,18.79181043]
[1746719413661,35.54915724,162.11,162.03,21.60093808]
[1746719413879,35.54915724,162.09,162.03,21.60093808]
[1746719414188,35.54915724,162.12,162.03,47.60093808]
[1746719414561,6.16484803,162.21,162.07,26.0]
[1746719414760,43.23751129,162.24,162.08,18.79181043]
[1746719414976,35.54915724,162.2,162.11,26.0]
[1746719415168,35.54915724,162.19,162.11,26.0]
[1746719415363,35.54915724,162.17,162.07,8.1921]
[1746719415559,35.54915724,162.16,162.1,21.59161011]
[1746719415780,35.54915724,162.24,162.1,21.59161011]
[1746719415977,6.16294835,162.26,162.1,21.59161011]
[1746719416283,6.16294835,162.26,162.13,26.0]
[1746719416495,35.54915724,162.21,162.13,26.0]
[1746719416788,6.16264264,162.27,162.13,26.0]
[1746719416984,35.54915724,162.22,162.13,26.0]
[1746719417187,6.16264264,162.27,162.13,26.0]
[1746719417582,35.54915724,162.23,162.14,21.58628344]
[1746719417786,35.54915724,162.22,162.14,21.58628344]
[1746719417992,35.54915724,162.21,162.14,6.16750955]
[1746719418187,35.54915724,162.19,162.14,6.16750955]
[1746719418389,35.54915724,162.24,162.14,6.16750955]
[1746719418694,35.54915724,162.19,162.14,6.16750955]
[1746719418890,35.54915724,162.24,162.14,6.16750955]
[1746719419190,35.54915724,162.2,162.14,6.16750955]
[1746719419384,35.54915724,162.19,162.1,21.59161011]
[1746719419693,35.54915724,162.24,162.1,21.59161011]
[1746719419694,35.54915724,162.17,162.1,21.59161011]
[1746719419996,35.54915724,162.15,162.1,6.16903146]
[1746719420370,35.54915724,162.16,162.1,21.59161011]
[1746719420569,35.54915724,162.17,162.1,21.59161011]
[1746719420893,35.54915724,162.15,162.1,21.59161011]
[1746719421187,35.54915724,162.11,162.08,6.16942644]
[1746719421368,6.16484803,162.21,162.08,6.16942644]
[1746719421569,6.16408802,162.23,162.08,6.16942644]
[1746719421764,35.54915724,162.17,162.08,21.59390817]
[1746719421969,35.54915724,162.17,162.08,47.59390817]
[1746719422289,35.54915724,162.09,162.02,6.17207752]
[1746719422492,35.54915724,162.09,162.02,32.17207752]
[1746719422661,35.54915724,162.08,162.02,21.60198277]
[1746719422869,35.54915724,162.05,162.02,6.17207752]
[1746719423085,26.0,162.13,162.02,6.17207752]
[1746719423361,6.16827041,162.12,162.02,6.17207752]
[1746719423972,35.54915724,162.06,162.02,6.17207752]
[1746719424386,35.54915724,162.05,162.02,6.17207752]
[1746719424692,6.16827041,162.12,162.01,42.55235695]
[1746719425195,35.54915724,162.02,161.96,21.98554017]
[1746719425371,35.54915724,162.0,161.97,6.17398283]
[1746719425885,35.54915724,162.01,161.97,6.17398283]
[1746719426072,35.54915724,162.0,161.97,6.17398283]
[1746719426478,35.54915724,161.98,161.95,6.17470816]
[1746719426790,32.17102798,162.05,161.95,6.17470816]
[1746719427170,32.17102798,162.05,161.92,51.31942382]
[1746719427171,35.54915724,161.97,161.93,6.17550793]
[1746719427395,35.54915724,161.95,161.93,6.17550793]
[1746719427599,35.54915724,161.94,161.89,6.638]
[1746719427778,35.54915724,162.0,161.84,231.16]
[1746719427779,26.0,161.99,161.84,231.16]
[1746719428110,35.54915724,161.91,161.85,21.62496137]
[1746719428280,26.0,161.99,161.85,21.62496137]
[1746719428281,35.54915724,161.9,161.85,21.62496137]
[1746719428785,35.54915724,162.0,161.83,48.28562086]
[1746719428786,35.54915724,161.86,161.83,48.28562086]
[1746719428995,35.54915724,161.88,161.83,48.28562086]
[1746719429302,35.54915724,161.87,161.83,12.38562086]
[1746719429481,35.54915724,161.88,161.83,12.38562086]
[1746719429682,35.54915724,161.87,161.83,12.38562086]
[1746719429982,35.54915724,161.92,161.79,6.18085172]
[1746719429983,35.54915724,161.84,161.79,6.18085172]
[1746719430300,35.54915724,161.82,161.79,6.18085172]
[1746719430478,26.0,161.89,161.79,6.18085172]
[1746719430679,35.54915724,161.82,161.79,6.18085172]
[1746719430988,35.54915724,161.84,161.79,6.18085172]
[1746719431195,27.6126,161.95,161.79,21.63298102]
[1746719431390,35.54915724,161.88,161.79,21.63298102]
[1746719431579,35.54915724,161.88,161.79,15.4521293]
[1746719432014,6.17245849,162.01,161.84,18.64964886]
[1746719432372,7.78823077,162.02,161.85,0.14216157]
[1746719432594,35.54915724,161.95,161.85,0.14216157]
[1746719432799,35.54915724,161.97,161.87,26.0]
[1746719433006,35.54915724,161.98,161.89,6.6169]
[1746719433176,35.54915724,161.97,161.89,6.6169]
[1746719433384,6.17017338,162.07,161.9,18.79181043]
[1746719433685,167.32062576,162.14,161.9,18.79181043]
[1746719433686,6.16750955,162.14,161.96,44.64964886]
[1746719433992,35.54915724,162.08,161.97,0.14216157]
[1746719434300,35.54915724,162.01,161.95,6.17474529]
[1746719434689,35.54915724,161.99,161.92,6.17588932]
[1746719434884,52.06790737,162.14,161.93,26.14216157]
[1746719434885,18.64964886,162.13,161.93,26.14216157]
[1746719435088,35.54915724,162.02,161.93,26.0]
[1746719435287,35.54915724,162.08,161.92,6.17588932]
[1746719435602,35.54915724,162.02,161.92,15.43972332]
[1746719435910,35.54915724,162.01,161.91,40.26659653]
[1746719436208,35.54915724,162.0,161.91,21.61694767]
[1746719436500,26.0,162.07,161.91,21.61694767]
[1746719436901,0.14216157,162.09,161.91,21.61694767]
[1746719437092,35.54915724,162.0,161.91,21.61694767]
[1746719437281,35.54915724,161.99,161.91,21.61694767]